{"text_format":"1","workbook":"xlsx","n_sheets":1,"sheets":["Sheet1"],"not_rendered":{"charts":0,"images":0,"macros":1,"external_links":0,"defined_names":2,"comments":0,"pivot_tables":0},"unopened":[],"bounds":{"document_bytes":16777216,"sheet_cells":100000,"rows_first":2000,"rows_last":500,"rows_between":2000,"halvings":0,"cell_chars":16384,"cell_head_chars":4096},"cells_cut":0,"cells_raw":0,"read":"whole","date_system":"1900"}

{"sheet":"Sheet1","index":0,"n_rows":21,"n_cols":31,"rows_kept":21,"cut":false,"hidden":false,"merged":[[5,24,5,25],[8,24,8,25],[11,26,11,27],[19,0,19,1],[0,0,0,30],[1,0,1,30],[18,14,18,15],[18,24,18,25],[19,2,19,3],[19,6,19,7],[19,12,19,13],[19,16,19,17],[19,18,19,19],[19,20,19,21],[19,22,19,23],[19,24,19,25],[3,26,3,27],[5,26,5,27],[10,26,10,27],[19,28,19,29],[17,26,17,27],[19,26,19,27],[4,22,4,23],[10,22,10,23],[13,22,13,23],[14,22,14,23],[15,22,15,23],[16,22,16,23],[8,14,8,15],[11,14,11,15],[19,14,19,15],[6,18,6,19],[7,18,7,19],[3,20,3,21],[9,20,9,21],[12,20,12,21],[17,20,17,21],[13,10,13,11],[16,10,16,11],[4,12,4,13],[5,12,5,13],[6,10,6,11],[9,12,9,13],[10,12,10,13],[17,8,17,9],[19,8,19,9],[19,10,19,11],[12,12,12,13],[14,12,14,13],[15,12,15,13],[7,8,7,9],[8,8,8,9],[9,8,9,9],[11,6,11,7],[2,14,2,15],[2,16,2,17],[2,4,2,5],[2,28,2,29],[4,2,4,3],[2,8,2,9],[2,2,2,3],[2,6,2,7],[2,10,2,11],[2,12,2,13],[2,18,2,19],[2,20,2,21],[2,22,2,23],[2,24,2,25],[2,26,2,27],[3,8,3,9],[6,2,6,3],[7,4,7,5],[12,2,12,3],[13,2,13,3],[18,2,18,3],[14,4,14,5],[15,4,15,5],[19,4,19,5],[20,2,20,3],[20,4,20,5],[20,6,20,7],[20,8,20,9],[20,10,20,11],[20,12,20,13],[20,14,20,15],[20,16,20,17],[20,18,20,19],[20,20,20,21],[20,22,20,23],[20,24,20,25],[20,26,20,27],[20,28,20,29]]}
["SEC Survivor Pick Helper"]
["Pick each team once, pick 1 or 2 selections per week (only one selection for the SECCG)"]
["Team","Picked?","Week 1",null,"Week 2",null,"Week 3",null,"Week 4",null,"Week 5",null,"Week 6",null,"Week 7",null,"Week 8",null,"Week 9",null,"Week 10",null,"Week 11",null,"Week 12",null,"Week 13",null,"Week 14",null,"SECCG"]
["Alabama",{"$f":"_xlfn.LET(_xlpm.picks,COUNTIFS(C4:AE4,TRUE),_xlfn.IFS(_xlpm.picks=1,\"Yes\",_xlpm.picks=0,\"No\",_xlpm.picks>1,\"Picked Twice\"))","v":"No"},"@ FSU",false,"ULM",false,"Wisconsin",false,"BYE",null,"@ Georgia",false,"Vanderbilt",false,"@ Missouri",false,"Tennessee",false,"@ South Carolina",false,"BYE",null,"LSU",false,"Oklahoma",false,"Eastern Illinois",null,"@ Auburn",false,false]
["Arkansas",{"$f":"_xlfn.LET(_xlpm.picks,COUNTIFS(C5:AE5,TRUE),_xlfn.IFS(_xlpm.picks=1,\"Yes\",_xlpm.picks=0,\"No\",_xlpm.picks>1,\"Picked Twice\"))","v":"No"},"Alabama A&M",null,"Arkansas St",false,"@ Ole Miss",false,"@ Memphis",false,"Notre Dame",false,"BYE",null,"@ Tennessee",false,"Texas A&M",false,"@ Auburn",false,"Miss St",false,"BYE",null,"@ LSU",false,"@ Texas",false,"Missouri",false,false]
["Auburn",{"$f":"_xlfn.LET(_xlpm.picks,COUNTIFS(C6:AE6,TRUE),_xlfn.IFS(_xlpm.picks=1,\"Yes\",_xlpm.picks=0,\"No\",_xlpm.picks>1,\"Picked Twice\"))","v":"No"},"@ Baylor",false,"Ball St",false,"South Alabama",false,"@ Oklahoma",false,"@ Texas A&M",false,"BYE",null,"Georgia",false,"Missouri",false,"@ Arkansas",false,"Kentucky",false,"@ Vanderbilt",false,"BYE",null,"Mercer",null,"Alabama",false,false]
["Florida",{"$f":"_xlfn.LET(_xlpm.picks,COUNTIFS(C7:AE7,TRUE),_xlfn.IFS(_xlpm.picks=1,\"Yes\",_xlpm.picks=0,\"No\",_xlpm.picks>1,\"Picked Twice\"))","v":"No"},"LIU",null,"USF",false,"@ LSU",false,"@ Miami",false,"BYE",null,"Texas",false,"@ Texas A&M",false,"Miss St",false,"BYE",null,"Georgia",false,"@ Kentucky",false,"@ Ole Miss",false,"Tennessee",false,"FSU",false,false]
["Georgia",{"$f":"_xlfn.LET(_xlpm.picks,COUNTIFS(C8:AE8,TRUE),_xlfn.IFS(_xlpm.picks=1,\"Yes\",_xlpm.picks=0,\"No\",_xlpm.picks>1,\"Picked Twice\"))","v":"No"},"Marshall",false,"Austin Peay",null,"@ Tennessee",false,"BYE",null,"Alabama",false,"Kentucky",false,"@ Auburn",false,"Ole Miss",false,"BYE",null,"Florida",false,"@ Miss St",false,"Texas",false,"Charlotte",false,"@ Georgia Tech",false,false]
["Kentucky",{"$f":"_xlfn.LET(_xlpm.picks,COUNTIFS(C9:AE9,TRUE),_xlfn.IFS(_xlpm.picks=1,\"Yes\",_xlpm.picks=0,\"No\",_xlpm.picks>1,\"Picked Twice\"))","v":"No"},"Toledo",false,"Ole Miss",false,"Eastern Michigan",false,"BYE",null,"@ South Carolina",false,"@ Georgia",false,"BYE",null,"Texas",false,"Tennessee",false,"@ Auburn",false,"Florida",false,"Tennessee Tech",null,"@ Vanderbilt",false,"@ Louisville",false,false]
["LSU",{"$f":"_xlfn.LET(_xlpm.picks,COUNTIFS(C10:AE10,TRUE),_xlfn.IFS(_xlpm.picks=1,\"Yes\",_xlpm.picks=0,\"No\",_xlpm.picks>1,\"Picked Twice\"))","v":"No"},"@ Clemson",false,"Louisiana Tech",false,"Florida",false,"Southeastern LA",null,"@ Ole Miss",false,"BYE",null,"South Carolina",false,"@ Vanderbilt",false,"Texas A&M",false,"BYE",null,"@ Alabama",false,"Arkansas",false,"WKU",false,"@ Oklahoma",false,false]
["Ole Miss",{"$f":"_xlfn.LET(_xlpm.picks,COUNTIFS(C11:AE11,TRUE),_xlfn.IFS(_xlpm.picks=1,\"Yes\",_xlpm.picks=0,\"No\",_xlpm.picks>1,\"Picked Twice\"))","v":"No"},"Georgia St",false,"@ Kentucky",false,"Arkansas",false,"Tulane",false,"LSU",false,"BYE",null,"Washington State",false,"@ Georgia",false,"@ Oklahoma",false,"South Carolina",false,"Citadel",null,"Florida",false,"BYE",null,"@ Miss St",false,false]
["Miss St",{"$f":"_xlfn.LET(_xlpm.picks,COUNTIFS(C12:AE12,TRUE),_xlfn.IFS(_xlpm.picks=1,\"Yes\",_xlpm.picks=0,\"No\",_xlpm.picks>1,\"Picked Twice\"))","v":"No"},"@ Southern Miss",false,"Arizona State",false,"Alcorn St",null,"NIU",false,"Tennessee",false,"@ Texas A&M",false,"BYE",null,"@ Florida",false,"Texas",false,"@ Arkansas",false,"Georgia",false,"@ Missouri",false,"BYE",null,"Ole Miss",false,false]
["Missouri",{"$f":"_xlfn.LET(_xlpm.picks,COUNTIFS(C13:AE13,TRUE),_xlfn.IFS(_xlpm.picks=1,\"Yes\",_xlpm.picks=0,\"No\",_xlpm.picks>1,\"Picked Twice\"))","v":"No"},"UCA",null,"Kansas",false,"Louisiana",false,"South Carolina",false,"UMass",false,"BYE",null,"Alabama",false,"@ Auburn",false,"@ Vanderbilt",false,"BYE",null,"Texas A&M",false,"Miss St",false,"@ Oklahoma",false,"@ Arkansas",false,false]
["Oklahoma",{"$f":"_xlfn.LET(_xlpm.picks,COUNTIFS(C14:AE14,TRUE),_xlfn.IFS(_xlpm.picks=1,\"Yes\",_xlpm.picks=0,\"No\",_xlpm.picks>1,\"Picked Twice\"))","v":"No"},"Illinois St",null,"Michigan",false,"Temple",false,"Auburn",false,"BYE",null,"Kent St",false,"Texas",false,"@ South Carolina",false,"Ole Miss",false,"@ Tennessee",false,"BYE",null,"@ Alabama",false,"Missouri",false,"LSU",false,false]
["South Carolina",{"$f":"_xlfn.LET(_xlpm.picks,COUNTIFS(C15:AE15,TRUE),_xlfn.IFS(_xlpm.picks=1,\"Yes\",_xlpm.picks=0,\"No\",_xlpm.picks>1,\"Picked Twice\"))","v":"No"},"Virginia Tech",false,"SC State",null,"Vanderbilt",false,"@ Missouri",false,"Kentucky",false,"BYE",null,"@ LSU",false,"Oklahoma",false,"Alabama",false,"@ Ole Miss",false,"BYE",null,"@ Texas A&M",false,"Coastal Carolina",false,"Clemson",false,false]
["Tennessee",{"$f":"_xlfn.LET(_xlpm.picks,COUNTIFS(C16:AE16,TRUE),_xlfn.IFS(_xlpm.picks=1,\"Yes\",_xlpm.picks=0,\"No\",_xlpm.picks>1,\"Picked Twice\"))","v":"No"},"Syracuse",false,"ETSU",null,"Georgia",false,"UAB",false,"@ Miss St",false,"BYE",null,"Arkansas",false,"@ Alabama",false,"@ Kentucky",false,"Oklahoma",false,"BYE",null,"NM St",false,"@ Florida",false,"Vanderbilt",false,false]
["Texas",{"$f":"_xlfn.LET(_xlpm.picks,COUNTIFS(C17:AE17,TRUE),_xlfn.IFS(_xlpm.picks=1,\"Yes\",_xlpm.picks=0,\"No\",_xlpm.picks>1,\"Picked Twice\"))","v":"No"},"@ Ohio State",false,"San Jose St",false,"UTEP",false,"Sam Houston St",false,"BYE",null,"@ Florida",false,"Oklahoma",false,"@ Kentucky",false,"@ Miss St",false,"Vanderbilt",false,"BYE",null,"@ Georgia",false,"Arkansas",false,"Texas A&M",false,false]
["Texas A&M",{"$f":"_xlfn.LET(_xlpm.picks,COUNTIFS(C18:AE18,TRUE),_xlfn.IFS(_xlpm.picks=1,\"Yes\",_xlpm.picks=0,\"No\",_xlpm.picks>1,\"Picked Twice\"))","v":"No"},"UTSA",false,"Utah St",false,"@ Notre Dame",false,"BYE",null,"Auburn",false,"Miss St",false,"Florida",false,"@ Arkansas",false,"@ LSU",false,"BYE",null,"@ Missouri",false,"South Carolina",false,"Samford",null,"@ Texas",false,false]
["Vanderbilt",{"$f":"_xlfn.LET(_xlpm.picks,COUNTIFS(C19:AE19,TRUE),_xlfn.IFS(_xlpm.picks=1,\"Yes\",_xlpm.picks=0,\"No\",_xlpm.picks>1,\"Picked Twice\"))","v":"No"},"CSU",null,"@ Virginia Tech",false,"@ South Carolina",false,"Georgia State",false,"Utah St",false,"@ Alabama",false,"BYE",null,"LSU",false,"Missouri",false,"@ Texas",false,"Auburn",false,"BYE",null,"Kentucky",false,"@ Tennessee",false,false]
["Weekly Selections",null,{"$f":"COUNTIF(D4:D19,TRUE)","v":0},null,{"$f":"COUNTIF(F4:F19,TRUE)","v":0},null,{"$f":"COUNTIF(H4:H19,TRUE)","v":0},null,{"$f":"COUNTIF(J4:J19,TRUE)","v":0},null,{"$f":"COUNTIF(L4:L19,TRUE)","v":0},null,{"$f":"COUNTIF(N4:N19,TRUE)","v":0},null,{"$f":"COUNTIF(P4:P19,TRUE)","v":0},null,{"$f":"COUNTIF(R4:R19,TRUE)","v":0},null,{"$f":"COUNTIF(T4:T19,TRUE)","v":0},null,{"$f":"COUNTIF(V4:V19,TRUE)","v":0},null,{"$f":"COUNTIF(X4:X19,TRUE)","v":0},null,{"$f":"COUNTIF(Z4:Z19,TRUE)","v":0},null,{"$f":"COUNTIF(AB4:AB19,TRUE)","v":0},null,{"$f":"COUNTIF(AD4:AD19,TRUE)","v":0},null,{"$f":"COUNTIF(AE4:AE19,TRUE)","v":0}]
[null,"Eligible Games",{"$f":"COUNTIF(D4:D19,TRUE)+COUNTIF(D4:D19,FALSE)","v":11},null,{"$f":"COUNTIF(F4:F19,TRUE)+COUNTIF(F4:F19,FALSE)","v":13},null,{"$f":"COUNTIF(H4:H19,TRUE)+COUNTIF(H4:H19,FALSE)","v":15},null,{"$f":"COUNTIF(J4:J19,TRUE)+COUNTIF(J4:J19,FALSE)","v":11},null,{"$f":"COUNTIF(L4:L19,TRUE)+COUNTIF(L4:L19,FALSE)","v":13},null,{"$f":"COUNTIF(N4:N19,TRUE)+COUNTIF(N4:N19,FALSE)","v":9},null,{"$f":"COUNTIF(P4:P19,TRUE)+COUNTIF(P4:P19,FALSE)","v":13},null,{"$f":"COUNTIF(R4:R19,TRUE)+COUNTIF(R4:R19,FALSE)","v":16},null,{"$f":"COUNTIF(T4:T19,TRUE)+COUNTIF(T4:T19,FALSE)","v":14},null,{"$f":"COUNTIF(V4:V19,TRUE)+COUNTIF(V4:V19,FALSE)","v":12},null,{"$f":"COUNTIF(X4:X19,TRUE)+COUNTIF(X4:X19,FALSE)","v":10},null,{"$f":"COUNTIF(Z4:Z19,TRUE)+COUNTIF(Z4:Z19,FALSE)","v":13},null,{"$f":"COUNTIF(AB4:AB19,TRUE)+COUNTIF(AB4:AB19,FALSE)","v":11},null,{"$f":"COUNTIF(AD4:AD19,TRUE)+COUNTIF(AD4:AD19,FALSE)","v":16}]